bitfinex-derivatives/quotes_BTCF0:USTF0_20251204
["timestamp","ask_amount","ask_price","bid_price","bid_amount"]
[1764849419594,0.5652612,93005.0,93004.0,0.06194]
[1764849420289,0.5652612,93005.0,93004.0,0.05694]
[1764849420491,0.5652612,93005.0,93004.0,0.02859]
[1764849420686,0.5652612,93005.0,93004.0,0.001]
[1764849420888,0.5672612,93005.0,93004.0,0.001]
[1764849421286,0.0826218,93000.0,92999.0,0.01115685]
[1764849421497,0.0826218,93000.0,92995.0,0.36096124]
[1764849421498,0.0661422,92996.0,92995.0,0.38855124]
[1764849421693,0.0661422,92996.0,92995.0,0.41590124]
[1764849421891,0.0661422,92996.0,92995.0,0.00016124]
[1764849422287,0.0661432,92988.0,92987.0,0.00012132]
[1764849422497,0.5653032,92988.0,92987.0,0.01106612]
[1764849423384,0.0661442,92979.0,92978.0,0.02775124]
[1764849423687,0.0661442,92979.0,92978.0,0.00016124]
[1764849424092,0.0661442,92979.0,92978.0,0.06832908]
[1764849424296,0.0661442,92979.0,92978.0,0.05751124]
[1764849424493,0.06626369,92979.0,92978.0,0.05751124]
[1764849425388,0.06626369,92979.0,92978.0,0.05851124]
[1764849425999,0.06726369,92979.0,92978.0,0.05851124]
[1764849426696,0.06726369,92979.0,92978.0,0.0693862]
[1764849431306,0.05650949,92979.0,92978.0,0.0693862]
[1764849433800,0.00111949,92979.0,92978.0,0.0693862]
[1764849434200,0.00111949,92979.0,92978.0,0.1562796]
[1764849434201,0.05882949,92979.0,92978.0,0.1562796]
[1764849434411,0.05882949,92979.0,92978.0,0.05851124]
[1764849434799,0.05882949,92979.0,92978.0,0.00116124]
[1764849435214,0.05882949,92979.0,92978.0,0.01209742]
[1764849435416,0.05882949,92979.0,92978.0,0.00116124]
[1764849436511,0.41962949,92979.0,92978.0,0.00116124]
[1764849437013,0.0684651,92971.0,92970.0,0.0111025]
[1764849437210,0.0684656,92967.0,92966.0,0.00026892]
[1764849437509,0.0684656,92967.0,92966.0,0.02760892]
[1764849437904,0.0684656,92967.0,92966.0,0.05736892]
[1764849438313,0.0684656,92967.0,92966.0,0.00026892]
[1764849438906,0.0684656,92967.0,92966.0,0.00426892]
[1764849439109,0.0684656,92967.0,92966.0,0.00626892]
[1764849443131,0.0684656,92967.0,92966.0,0.03360892]
[1764849445020,0.0684656,92967.0,92966.0,0.00626892]
[1764849448915,0.0684656,92967.0,92966.0,0.03360892]
[1764849450721,0.0684656,92967.0,92966.0,0.06336892]
[1764849451019,0.0684656,92967.0,92966.0,0.03360892]
[1764849453819,0.0683656,92967.0,92966.0,0.06336892]
[1764849454019,0.5677656,92967.0,92966.0,0.07412462]
[1764849454916,0.55701,92967.0,92966.0,0.07412462]
[1764849457018,0.05761,92967.0,92966.0,0.07412462]
[1764849458323,0.0683656,92967.0,92966.0,0.07412462]
[1764849459630,0.05761,92967.0,92966.0,0.07412462]
[1764849461130,0.05761,92967.0,92966.0,0.00626892]
[1764849462024,0.05772894,92967.0,92966.0,0.00626892]
[1764849464333,0.0802796,92967.0,92966.0,0.00626892]
[1764849464834,0.0802796,92967.0,92957.0,0.00016133]
[1764849464835,0.0663566,92958.0,92957.0,0.00016133]
[1764849465024,0.08890726,92958.0,92957.0,0.00016133]
[1764849465930,0.08890726,92958.0,92957.0,0.00316133]
[1764849466136,0.08890726,92958.0,92957.0,0.00916133]
[1764849466937,0.08890726,92958.0,92957.0,0.02154499]
[1764849467233,0.08890726,92958.0,92957.0,0.00916133]
[1764849467434,0.08890726,92958.0,92957.0,0.06523133]
[1764849467734,0.58834726,92958.0,92957.0,0.06523133]
[1764849468438,0.57759066,92958.0,92957.0,0.06523133]
[1764849468735,0.07815066,92958.0,92957.0,0.06523133]
[1764849468937,0.57759066,92958.0,92957.0,0.06523133]
[1764849469126,0.07815066,92958.0,92957.0,0.06523133]
[1764849469438,0.57759066,92958.0,92957.0,0.06523133]
[1764849470129,0.57759066,92958.0,92957.0,0.07801158]
[1764849475243,0.55504,92958.0,92957.0,0.07801158]
[1764849476240,0.5657966,92958.0,92957.0,0.08876828]
[1764849477443,0.0663566,92958.0,92957.0,0.08876828]
[1764849477644,0.5658366,92958.0,92957.0,0.08876828]
[1764849478342,0.0663566,92958.0,92957.0,0.08876828]
[1764849478640,0.5658366,92958.0,92957.0,0.08876828]
[1764849481344,0.5658366,92958.0,92957.0,0.00916133]
[1764849481541,0.58838604,92958.0,92957.0,0.00916133]
[1764849483146,0.58838604,92958.0,92957.0,0.06523133]
[1764849483448,0.0556,92958.0,92957.0,0.07598803]
[1764849483639,0.55508,92958.0,92957.0,0.07598803]
[1764849484742,0.0556,92958.0,92957.0,0.07598803]
[1764849485242,0.0739,92959.0,92958.0,0.05732]
[1764849486546,0.0739,92959.0,92958.0,0.06132]
[1764849487244,0.13032,92959.0,92958.0,0.11933184]
[1764849487447,0.05642,92959.0,92958.0,0.12133184]
[1764849490943,0.02837,92959.0,92958.0,0.06332]
[1764849491149,0.05670027,92967.0,92966.0,0.05732]
[1764849492054,0.05670027,92967.0,92966.0,0.0680757]
[1764849492256,0.05670027,92967.0,92966.0,0.0700757]
[1764849493456,0.05670027,92967.0,92966.0,0.0720757]
[1764849498259,0.06745587,92967.0,92966.0,0.0720757]
[1764849498658,0.05670027,92967.0,92966.0,0.0720757]
[1764849501856,0.00028027,92967.0,92966.0,0.0720757]
[1764849502355,0.02865027,92967.0,92966.0,0.0720757]
[1764849502557,0.00028027,92967.0,92966.0,0.1300887]
[1764849507456,0.55544166,92973.0,92972.0,0.068075]
[1764849507650,0.52739166,92973.0,92972.0,0.068075]
[1764849507856,0.05642,92980.0,92979.0,0.0680742]
[1764849508157,0.0966207,92980.0,92979.0,0.0680742]
[1764849508472,0.0671751,92971.0,92970.0,0.4288752]
[1764849511770,0.0671751,92971.0,92970.0,0.3715552]
[1764849512071,0.0671751,92971.0,92970.0,0.3618]
[1764849513161,0.0671751,92971.0,92970.0,0.41912]
[1764849515264,0.0594,92978.0,92977.0,0.0107542]
[1764849515568,0.08190359,92978.0,92971.0,0.010755]
[1764849515769,0.0594,92972.0,92971.0,0.068015]
[1764849517174,0.0614,92972.0,92971.0,0.068015]
[1764849521977,0.0594,92972.0,92971.0,0.068015]
[1764849522176,0.0614,92972.0,92971.0,0.068015]
[1764849525176,0.002,92972.0,92971.0,0.068015]
[1764849526373,0.0672435,92986.0,92985.0,0.0675233]
[1764849526679,0.08966794,92986.0,92985.0,0.0675233]
[1764849527077,0.17442072,92986.0,92985.0,0.0675233]
[1764849527885,0.17542072,92986.0,92985.0,0.0675233]
[1764849528384,0.18042072,92986.0,92985.0,0.0675233]
[1764849528584,0.16966722,92986.0,92985.0,0.0675233]
[1764849528985,0.08491444,92986.0,92985.0,0.0675233]
[1764849529880,0.08491444,92986.0,92985.0,0.05677]
[1764849532890,0.08491444,92986.0,92985.0,0.0675235]
[1764849537286,0.06249,92986.0,92985.0,0.0675235]
[1764849540481,0.03515,92986.0,92985.0,0.0675235]
[1764849540982,0.06249,92986.0,92985.0,0.0675235]
[1764849542902,0.0732434,92986.0,92985.0,0.0675235]
[1764849543891,0.0732434,92986.0,92979.0,0.41885044]
[1764849543892,0.0727,92980.0,92979.0,0.3608]
[1764849544088,0.0662044,92977.0,92976.0,0.00016133]
[1764849545591,0.0692044,92977.0,92976.0,0.00016133]
[1764849547193,0.0692044,92977.0,92976.0,0.02949133]
[1764849547390,0.0692044,92977.0,92976.0,0.05762133]
[1764849555092,0.05845,92977.0,92976.0,0.05762133]
[1764849555592,0.003,92977.0,92976.0,0.05762133]
[1764849555897,0.003,92977.0,92976.0,0.41842133]
[1764849556089,0.0308,92977.0,92976.0,0.41842133]
[1764849558604,0.003,92977.0,92976.0,0.48722627]
[1764849559700,0.003,92977.0,92976.0,0.42917583]
[1764849581225,0.003,92977.0,92976.0,0.92837583]
[1764849584229,0.003,92977.0,92976.0,1.28917583]
[1764849585326,0.03023,92977.0,92976.0,1.36636063]
[1764849587835,0.003,92977.0,92976.0,1.36636063]
[1764849588330,0.003,92977.0,92976.0,1.28917583]
[1764849590636,0.003,92977.0,92976.0,0.78997583]
[1764849590937,0.003,92977.0,92976.0,1.28917583]
[1764849593552,0.003,92977.0,92976.0,0.56757583]
[1764849593851,0.003,92977.0,92976.0,0.92837583]
[1764849594243,0.003,92977.0,92976.0,0.92833583]
[1764849598555,0.003,92977.0,92976.0,0.56753583]
[1764849598747,0.003,92977.0,92976.0,0.92833583]
[1764849604058,0.06082,92977.0,92976.0,0.92833583]
[1764849604252,0.0313,92977.0,92976.0,0.94359583]
[1764849604654,0.003,92977.0,92976.0,0.94359583]
[1764849605050,0.06082,92977.0,92976.0,0.94359583]
[1764849605258,0.06082,92977.0,92976.0,0.92833583]
[1764849607949,0.06082,92977.0,92976.0,0.42917583]
[1764849608865,0.003,92977.0,92976.0,0.44443583]
[1764849610464,0.00016133,92989.0,92988.0,0.0107532]
[1764849610662,0.05798133,92989.0,92988.0,0.4298932]
[1764849611162,0.05798133,92989.0,92988.0,0.4451532]
[1764849611163,0.00016133,92989.0,92988.0,0.4451532]
[1764849611359,0.05782,93001.0,93000.0,0.0690918]
[1764849612060,0.05782,93001.0,93000.0,0.12715693]
[1764849612369,0.05782,93001.0,93000.0,0.0700918]
[1764849614865,0.05782,93001.0,93000.0,0.0730918]
[1764849615257,0.05882,93001.0,93000.0,0.001]
[1764849615465,0.05782,92998.0,92997.0,0.3608]
[1764849615966,0.05782,92998.0,92997.0,0.38941]
[1764849616273,0.05782,92998.0,92997.0,0.41914]
[1764849616755,0.05782,92998.0,92997.0,0.38941]
[1764849616961,0.05782,92998.0,92997.0,0.3608]
[1764849617680,0.05782,92998.0,92997.0,0.3618]
[1764849617968,0.05782,92998.0,92997.0,0.39041]
[1764849618169,0.05882,92998.0,92997.0,0.39041]
[1764849618371,0.05882,92998.0,92997.0,0.42014]
[1764849618555,0.05882,92998.0,92997.0,0.41914]
[1764849619561,0.069572,92998.0,92997.0,0.41914]
[1764849619763,0.05882,92998.0,92997.0,0.41914]
[1764849620773,0.05782,92998.0,92997.0,0.41914]
[1764849620973,0.05882,92998.0,92997.0,0.41914]
[1764849621368,0.05782,92998.0,92997.0,0.41914]
[1764849621672,0.05882,92998.0,92997.0,0.41914]
[1764849622371,0.001,92998.0,92997.0,0.41914]
[1764849623475,0.00016075,93010.0,93005.0,0.0690912]
[1764849623682,0.00016075,93010.0,93005.0,0.4298912]
[1764849623975,0.00016075,93010.0,93005.0,0.9289712]
[1764849624870,0.00016075,93010.0,93005.0,0.9299712]
[1764849627773,0.00016075,93010.0,93005.0,0.4308912]
[1764849627971,0.00016075,93010.0,93005.0,0.9299312]
[1764849628872,0.0580888,93006.0,93005.0,0.9299312]
[1764849629077,0.0580888,93006.0,93005.0,0.96852774]
[1764849629267,0.0580888,93006.0,93005.0,0.4308912]
[1764849629467,0.0580888,93006.0,93005.0,0.9299312]
[1764849630368,0.0580888,93006.0,93005.0,0.4308912]
[1764849631879,0.0580888,93006.0,93005.0,0.9299312]
[1764849636569,0.0580888,93006.0,93005.0,0.42014]
[1764849636769,0.0580888,93006.0,93005.0,0.001]
[1764849637678,0.0580888,93006.0,93005.0,0.0578]
[1764849637878,0.0580888,93006.0,93005.0,0.0685512]
[1764849638282,0.0590888,93006.0,93005.0,0.0685512]
[1764849640674,0.0580888,93006.0,93005.0,0.0685512]
[1764849640879,0.0590888,93006.0,93005.0,0.0685512]
[1764849641675,0.0590888,93006.0,93005.0,0.0578]
[1764849653477,0.0295688,93006.0,93005.0,0.0578]
[1764849653883,0.0590588,93006.0,93005.0,0.0578]
[1764849659987,0.0590588,93006.0,93002.0,0.0385946]
[1764849660198,0.0590588,93006.0,92997.0,0.42949783]
[1764849660199,0.069252,92998.0,92997.0,0.4661467]
[1764849661191,0.069252,92998.0,92997.0,0.4275521]
[1764849662592,0.069252,92998.0,92997.0,0.4305521]
[1764849663295,0.069252,92998.0,92997.0,0.4295521]
[1764849663489,0.039762,92998.0,92997.0,0.4275521]
[1764849664389,0.0681917,93004.0,93003.0,0.0107512]
[1764849664590,0.0681917,93004.0,93003.0,0.0663312]
[1764849677806,0.0299588,93006.0,93005.0,0.0663312]
[1764849677998,0.0299588,93006.0,93005.0,0.48520465]
[1764849678399,0.0299588,93006.0,93005.0,0.4271312]
[1764849678600,0.00016075,93010.0,93009.0,0.0815907]
[1764849679902,0.00116075,93010.0,93009.0,0.0815907]
[1764849683809,0.05744,93027.0,93026.0,0.05558]
[1764849684010,0.05744,93027.0,93026.0,0.41638]
[1764849684912,0.06244,93027.0,93026.0,0.41638]
[1764849685308,0.03569,93027.0,93026.0,0.41638]
[1764849685713,0.06344,93027.0,93026.0,0.41638]
[1764849687114,0.06344,93027.0,93026.0,0.42949987]
[1764849688018,0.006,93027.0,93026.0,0.42949987]
[1764849689116,0.005,93027.0,93026.0,0.42949987]
[1764849689517,0.48927,93039.0,93038.0,0.0683074]
[1764849691112,0.49327,93039.0,93038.0,0.0683074]
[1764849691619,0.10508,93039.0,93038.0,0.0683074]
[1764849692004,0.03118,93039.0,93038.0,0.0683074]
[1764849692717,0.05857,93039.0,93038.0,0.0683074]
[1764849693214,0.0009998,93039.0,93038.0,0.0683074]
[1764849694532,0.3776,93056.0,93045.0,0.0703166]
[1764849694713,0.3776,93056.0,93045.0,0.4311166]
[1764849695618,0.00226869,93046.0,93045.0,0.4311166]
[1764849697114,0.0168,93060.0,93045.0,0.4311166]
[1764849697115,0.07588,93060.0,93059.0,0.070315]
[1764849698616,0.05908,93060.0,93059.0,0.070315]
[1764849698813,0.06408,93060.0,93059.0,0.070315]
[1764849702309,0.08038,93060.0,93059.0,0.070315]
[1764849709223,0.06408,93060.0,93059.0,0.070315]
[1764849711318,0.06108,93060.0,93059.0,0.070315]
[1764849711520,0.002,93060.0,93059.0,0.070315]
[1764849712118,0.0546,93072.0,93060.0,0.01526]
[1764849712321,0.0546,93072.0,93071.0,0.4310336]
[1764849712519,0.07225,93072.0,93071.0,0.3715436]
[1764849712724,0.07225,93072.0,93071.0,0.0107436]
[1764849713132,0.07225,93072.0,93071.0,0.0405636]
[1764849713325,0.07225,93072.0,93071.0,0.0702336]
[1764849713827,0.07225,93072.0,93071.0,0.0722336]
[1764849714231,0.07225,93072.0,93071.0,0.0702336]
[1764849714535,0.07225,93072.0,93071.0,0.0722336]
[1764849715327,0.07225,93072.0,93071.0,0.0732336]
[1764849716332,0.07225,93072.0,93071.0,0.0752336]
[1764849717038,0.07225,93072.0,93071.0,0.0742336]
[1764849720227,0.0546,93072.0,93071.0,0.0742336]
[1764849721336,0.02749,93072.0,93071.0,0.0742336]
[1764849721726,0.07225,93072.0,93071.0,1.504]
[1764849721926,0.07225,93072.0,93071.0,0.004]
[1764849722129,0.06363,93060.0,93059.0,0.03857508]
[1764849722328,0.06363,93060.0,93057.0,0.00016123]
[1764849722329,0.0546,93058.0,93057.0,0.00016123]
[1764849722637,0.0546,93058.0,93046.0,0.03857508]
[1764849722838,0.0546,93043.0,93042.0,0.03857508]
[1764849723038,0.0546,93042.0,93041.0,0.070237]
[1764849723236,0.0546,93042.0,93041.0,0.10881208]
[1764849724841,0.0546,93042.0,93041.0,0.071237]
[1764849725339,0.0546,93042.0,93041.0,0.074237]
[1764849726332,0.0546,93042.0,93041.0,0.073237]
[1764849726532,0.0546,93042.0,93041.0,0.075237]
[1764849727740,0.0546,93042.0,93041.0,0.074237]
[1764849736045,0.05824,93050.0,93049.0,0.05826]
[1764849736235,0.02871,93050.0,93049.0,0.05826]
[1764849736434,0.05824,93050.0,93049.0,0.05826]
[1764849737350,0.00016092,93051.0,93050.0,0.085556]
[1764849738053,0.05840092,93051.0,93050.0,0.09680427]
[1764849738243,0.07567,93050.0,93049.0,0.03854427]
[1764849738550,0.05824,93048.0,93047.0,0.3905]
[1764849739345,0.05824,93048.0,93047.0,0.41906]
[1764849739836,0.05824,93048.0,93047.0,0.3608]
[1764849740441,0.05824,93048.0,93047.0,0.3618]
[1764849741251,0.05824,93048.0,93047.0,0.3945]
[1764849741440,0.05824,93048.0,93047.0,0.3648]
[1764849741644,0.05824,93048.0,93047.0,0.004]
[1764849741942,0.05824,93048.0,93047.0,0.002]
[1764849742144,0.05824,93048.0,93047.0,0.0317]
[1764849742338,0.05824,93048.0,93047.0,0.0307]
[1764849742543,0.05824,93048.0,93047.0,0.05926]
[1764849742747,0.05824,93048.0,93047.0,0.001]
[1764849743053,0.05824,93039.0,93038.0,0.10755157]
[1764849744259,0.05824,93039.0,93038.0,0.10855157]
[1764849744452,0.05824,93039.0,93038.0,0.11255157]
[1764849745158,0.05824,93039.0,93038.0,0.0740073]
[1764849746253,0.05824,93039.0,93038.0,0.06326]
[1764849747163,0.05824,93039.0,93038.0,0.005]
[1764849747361,0.05824,93033.0,93032.0,0.00016123]
[1764849748856,0.06024,93033.0,93032.0,0.00016123]
[1764849749257,0.05824,93026.0,93025.0,0.3608]
[1764849749862,0.05824,93018.0,93017.0,0.03857976]
[1764849750063,0.05824,93014.0,93012.0,0.03857976]
[1764849750260,0.05824,93012.0,93011.0,0.09683976]
[1764849750462,0.05824,93012.0,93011.0,0.05826]
[1764849751160,0.05824,93012.0,93011.0,0.07077636]
[1764849751467,0.05824,93012.0,93011.0,0.43157636]
[1764849752259,0.05824,93012.0,93011.0,0.47116026]
[1764849752660,0.01743,93015.0,93011.0,0.47116026]
[1764849752661,0.05840123,93024.0,93023.0,0.05826]
[1764849753161,0.00016123,93024.0,93023.0,0.05826]
[1764849753464,0.05840123,93024.0,93023.0,0.05826]
[1764849753769,0.00016123,93024.0,93023.0,0.05826]
[1764849754972,0.00016123,93024.0,93023.0,0.06326]
[1764849755868,0.00016123,93024.0,93023.0,0.06526]
[1764849756973,0.00016123,93024.0,93023.0,0.06326]
[1764849757168,0.00016123,93024.0,93023.0,0.06426]
[1764849757872,0.02746123,93024.0,93023.0,0.06426]
[1764849758073,0.00016123,93024.0,93023.0,0.06426]
[1764849758564,0.00016123,93024.0,93023.0,0.12223676]
[1764849758765,0.00016123,93024.0,93023.0,0.06426]
[1764849760569,0.01743,93045.0,93023.0,0.06426]
[1764849760570,0.07406,93045.0,93044.0,0.0559]
[1764849760766,0.05663,93038.0,93037.0,0.4274474]
[1764849761770,0.05863,93038.0,93037.0,0.4274474]
[1764849764172,0.05663,93038.0,93037.0,0.4274474]
[1764849764378,0.05763,93038.0,93037.0,0.4274474]
[1764849764770,0.05663,93038.0,93037.0,0.4274474]
[1764849765472,0.05679092,93047.0,93046.0,0.0559]
[1764849768077,0.05779092,93047.0,93046.0,0.0559]
[1764849770378,0.05779092,93047.0,93046.0,0.0569]
[1764849770975,0.05679092,93047.0,93046.0,0.0569]
[1764849775875,0.02746092,93047.0,93046.0,0.0569]
[1764849776475,0.05645092,93047.0,93046.0,0.0569]
[1764849777070,0.05645092,93047.0,93046.0,0.09546294]
[1764849777471,0.00016092,93047.0,93046.0,0.0569]
[1764849777777,0.02951092,93047.0,93046.0,0.0569]
[1764849777979,0.05850092,93047.0,93046.0,0.0569]
[1764849780580,0.00016092,93047.0,93046.0,0.0569]
[1764849785479,0.15255158,93060.0,93046.0,0.001]
[1764849785684,0.20808158,93060.0,93059.0,0.05761]
[1764849785887,0.05553,93060.0,93059.0,0.05761]
[1764849786197,0.05553,93060.0,93059.0,0.068355]
[1764849786894,0.07481,93060.0,93059.0,0.068355]
[1764849787793,0.07181,93060.0,93059.0,0.068355]
[1764849787990,0.07381,93060.0,93059.0,0.068355]
[1764849796794,0.05753,93060.0,93059.0,0.068355]
[1764849799295,0.002,93060.0,93059.0,0.1262455]
[1764849799493,0.05753,93060.0,93059.0,0.1262455]
[1764849800192,0.05753,93060.0,93059.0,0.068355]
[1764849801789,0.002,93060.0,93059.0,0.068355]
[1764849802195,0.01628,93076.0,93075.0,0.0107431]
[1764849802391,0.0303893,93076.0,93075.0,0.0683531]
[1764849803401,0.0313893,93076.0,93075.0,0.0683531]
[1764849803701,0.0373893,93076.0,93075.0,0.08058659]
[1764849804795,0.0471593,93076.0,93075.0,0.02297659]
[1764849804996,0.0471593,93076.0,93075.0,0.08058659]
[1764849805192,0.0536693,93076.0,93075.0,0.08058659]
[1764849805500,0.0373893,93076.0,93075.0,0.08058659]
[1764849807802,0.0373893,93076.0,93075.0,0.09826659]
[1764849810610,0.0373893,93076.0,93075.0,0.08058659]
[1764849810824,0.0373893,93076.0,93075.0,0.11917586]
[1764849811023,0.0373893,93076.0,93075.0,0.05098659]
[1764849811221,0.0373893,93076.0,93075.0,0.01223349]
[1764849811522,0.0373893,93076.0,93070.0,0.3608]
[1764849811523,0.05553,93074.0,93073.0,0.0107433]
[1764849812619,0.05953,93074.0,93073.0,0.0107433]
[1764849812821,0.06053,93074.0,93073.0,0.0107433]
[1764849813121,0.06053,93074.0,93073.0,0.02261678]
[1764849813321,0.06053,93074.0,93073.0,0.0107433]
[1764849813817,0.06053,93074.0,93073.0,0.0387533]
[1764849814017,0.06053,93074.0,93073.0,0.07781879]
[1764849824131,0.005,93074.0,93073.0,0.07781879]
[1764849825130,0.03473,93074.0,93073.0,0.07781879]
[1764849825432,0.06426,93074.0,93073.0,0.07781879]
[1764849831329,0.06426,93074.0,93073.0,0.13570929]
[1764849834736,0.005,93074.0,93073.0,0.13570929]
[1764849834941,0.005,93074.0,93073.0,0.43861879]
[1764849838137,0.00026857,93086.0,93073.0,0.43861879]
[1764849838138,0.05952857,93086.0,93085.0,0.0678519]
[1764849839438,0.06852857,93086.0,93085.0,0.0678519]
[1764849839836,0.06852857,93086.0,93085.0,0.0107419]
[1764849840840,0.06852857,93086.0,93085.0,0.0404319]
[1764849841049,0.06852857,93086.0,93085.0,0.02969]
[1764849841348,0.07654,93084.0,93083.0,0.39049]
[1764849841545,0.05926,93084.0,93083.0,0.4286522]
[1764849841852,0.07654,93084.0,93083.0,0.4012322]
[1764849842151,0.05926,93084.0,93083.0,0.4286522]
[1764849842539,0.06326,93084.0,93083.0,0.4286522]
[1764849842946,0.06526,93084.0,93083.0,0.4286522]
[1764849845650,0.06526,93084.0,93083.0,0.41791]
[1764849850347,0.06526,93084.0,93083.0,0.05711]
[1764849854358,0.06526,93084.0,93083.0,0.08609895]
[1764849858356,0.006,93084.0,93083.0,0.08609895]
[1764849858557,0.05,93100.0,93099.0,0.05913]
[1764849858746,0.12183,93100.0,93098.0,0.02899372]
[1764849858950,0.12183,93100.0,93099.0,0.02934]
[1764849859152,0.12183,93100.0,93099.0,0.05913]
[1764849859759,0.12283,93100.0,93099.0,0.05913]
[1764849860946,0.10643,93100.0,93099.0,0.05913]
[1764849861156,0.12483,93100.0,93099.0,0.02934]
[1764849861353,0.05543,93097.0,93096.0,0.0977883]
[1764849861552,0.05543,93097.0,93096.0,0.0386583]
[1764849861751,0.05543,93093.0,93092.0,0.0679983]
[1764849862059,0.05543,93093.0,93092.0,0.0977883]
[1764849862360,0.05543,93093.0,93092.0,0.05913]
[1764849863456,0.05543,93092.0,93091.0,0.0386583]
[1764849863662,0.3608,93093.0,93072.0,0.3608]
[1764849863663,0.0164,93090.0,93083.0,0.02896645]
[1764849863855,0.05543,93082.0,93081.0,0.02896645]
[1764849864163,0.05543,93081.0,93080.0,0.02896645]
[1764849864349,0.05543,93081.0,93079.0,0.02896645]
[1764849864552,0.07183,93080.0,93079.0,0.02896645]
[1764849865463,0.07183,93080.0,93079.0,0.001]
[1764849866364,0.57023,93080.0,93079.0,0.001]
[1764849866564,0.05543,93077.0,93076.0,0.00016114]
[1764849867059,0.5158,93080.0,93065.0,0.02896645]
[1764849867060,0.05543,93066.0,93065.0,0.02896645]
[1764849867362,0.05543,93063.0,93062.0,0.02896645]
[1764849867658,0.0164,93065.0,93050.0,0.02896645]
[1764849867659,0.05543,93052.0,93050.0,0.02896645]
[1764849867858,0.07183,93050.0,93048.0,0.02896645]
[1764849868064,0.05543,93049.0,93048.0,0.02896645]
[1764849868463,0.05543,93047.0,93046.0,0.02896645]
[1764849868660,0.05543,93047.0,93046.0,0.02923514]
[1764849869066,0.05543,93047.0,93046.0,0.00026869]
[1764849870371,0.05543,93047.0,93046.0,0.02960869]
[1764849870665,0.05543,93047.0,93046.0,0.03060869]
[1764849871761,0.05543,93047.0,93046.0,0.06039869]
[1764849873864,0.05543,93047.0,93046.0,0.06139869]
[1764849875074,0.05543,93047.0,93046.0,0.06339869]
[1764849876272,0.05543,93047.0,93046.0,0.06239869]
[1764849877762,0.05543,93047.0,93046.0,0.05939869]
[1764849877962,0.05543,93047.0,93046.0,0.06339869]
[1764849879271,0.05543,93047.0,93046.0,0.05939869]
[1764849879473,0.05543,93047.0,93046.0,0.06239869]
[1764849879859,0.05543,93047.0,93046.0,0.05939869]
[1764849880064,0.05543,93047.0,93046.0,0.06139869]
[1764849881476,0.05543,93047.0,93046.0,0.03160869]
[1764849881670,0.05543,93047.0,93046.0,0.00226869]
[1764849881864,0.05543,93047.0,93046.0,0.02936869]
[1764849882065,0.05543,93047.0,93046.0,0.05867869]
[1764849882264,0.05543,93047.0,93046.0,0.05667869]
[1764849882469,0.05543,93047.0,93046.0,0.05767869]
[1764849895869,0.3608,93049.0,93046.0,0.05767869]
[1764849896074,0.05677,93049.0,93048.0,0.0805762]
[1764849897280,0.05677,93049.0,93048.0,0.05641]
[1764849897676,0.05677,93049.0,93048.0,0.05741]
[1764849899184,0.05677,93049.0,93048.0,0.05941]
[1764849900186,0.05677,93049.0,93048.0,0.05841]
[1764849900384,0.41757,93049.0,93048.0,0.0291]
[1764849900688,0.41757,93049.0,93048.0,0.05841]
[1764849901987,0.41757,93049.0,93048.0,0.05641]
[1764849902183,0.41757,93049.0,93048.0,0.05841]
[1764849902581,0.41757,93049.0,93048.0,0.05641]
[1764849902782,0.41757,93049.0,93048.0,0.05741]
[1764849903589,0.3608,93049.0,93048.0,0.06972]
[1764849903892,0.0739,93050.0,93049.0,0.0669761]
[1764849904095,0.5725,93050.0,93049.0,0.0669761]
[1764849905693,0.5725,93050.0,93049.0,0.12497876]
[1764849906193,0.5725,93050.0,93049.0,0.0719761]
[1764849906393,0.5725,93050.0,93049.0,0.0729761]
[1764849906892,0.5725,93050.0,93049.0,0.0719761]
[1764849908193,0.60017,93050.0,93049.0,0.0719761]
[1764849908388,0.60017,93050.0,93049.0,0.0679761]
[1764849908594,0.60017,93050.0,93049.0,0.0729761]
[1764849908996,0.52627,93050.0,93049.0,0.0729761]
[1764849909982,0.55584,93050.0,93049.0,0.0729761]
[1764849910188,0.55584,93050.0,93049.0,0.06223]
[1764849910382,0.57292,93050.0,93049.0,0.06223]
[1764849910587,0.93372,93050.0,93049.0,0.06223]
[1764849911596,0.91664,93050.0,93049.0,0.05623]
[1764849911796,0.55584,93050.0,93049.0,0.05923]
[1764849912300,0.55584,93050.0,93049.0,0.0978833]
[1764849912697,0.55584,93050.0,93049.0,0.0948833]
[1764849912892,0.55584,93050.0,93049.0,0.05923]
[1764849913291,0.55584,93050.0,93049.0,0.05623]
[1764849913491,0.55584,93050.0,93049.0,0.06023]
[1764849915600,0.02767,93050.0,93049.0,0.06023]
[1764849915795,0.02767,93050.0,93049.0,0.11823266]
[1764849916390,0.13114,93058.0,93057.0,0.05623]
[1764849916692,0.10157,93058.0,93057.0,0.0669752]
[1764849916893,0.13114,93058.0,93057.0,0.0669752]
[1764849917902,0.13114,93058.0,93057.0,0.0679752]
[1764849918694,0.13114,93058.0,93057.0,0.0729752]
[1764849919702,0.13114,93058.0,93057.0,0.0719752]
[1764849920205,0.13114,93058.0,93057.0,0.06123]
[1764849920701,0.13114,93058.0,93057.0,0.06023]
[1764849920902,0.05724,93058.0,93057.0,0.06023]
[1764849921602,0.05724,93058.0,93057.0,0.05623]
[1764849921802,0.05724,93058.0,93057.0,0.06023]
[1764849922402,0.05724,93058.0,93057.0,0.05623]
[1764849922595,0.05724,93058.0,93057.0,0.06023]
[1764849922992,0.05724,93058.0,93057.0,0.05623]
[1764849923303,0.05724,93058.0,93057.0,0.06123]
[1764849928999,0.05724,93058.0,93057.0,0.42203]
[1764849931004,0.00016083,93060.0,93059.0,0.05623]
[1764849931711,0.05740083,93060.0,93059.0,0.05623]
[1764849931908,0.00016083,93060.0,93059.0,0.05623]
[1764849932106,0.02783083,93060.0,93059.0,0.05623]
[1764849932308,0.05740083,93060.0,93059.0,0.06023]
[1764849934114,0.02783083,93060.0,93059.0,0.06123]
[1764849934313,0.05747083,93060.0,93059.0,0.06223]
[1764849934817,0.02796083,93060.0,93059.0,0.12020153]
[1764849935012,0.05760083,93060.0,93059.0,0.12020153]
[1764849935606,0.02796083,93060.0,93059.0,0.12020153]
[1764849936015,0.00016083,93060.0,93059.0,0.12020153]
[1764849936713,0.60026,93069.0,93068.0,0.0810439]
[1764849936914,0.52636,93069.0,93068.0,0.11966642]